bitfinex/quotes_ETHUSD_20250518
["timestamp","ask_amount","ask_price","bid_price","bid_amount"]
[1747594576690,4.06475934,2460.2,2459.7,4.06545812]
[1747594578109,4.06515364,2460.0,2459.6,0.7713]
[1747594579039,4.06494023,2460.1,2459.6,4.83698139]
[1747594579524,4.06494023,2460.1,2459.6,0.7713]
[1747594579922,4.06506276,2460.0,2459.6,0.7713]
[1747594580442,4.06522499,2459.9,2459.6,0.7713]
[1747594581119,4.06510862,2460.0,2459.7,10.615]
[1747594581636,4.0652059,2459.9,2459.8,10.616]
[1747594581797,0.04053918,2460.1,2459.6,0.7713]
[1747594581998,4.0652059,2459.9,2459.8,10.616]
[1747594583124,4.06554458,2459.7,2459.4,17.539]
[1747594583320,4.0657998,2459.6,2459.5,10.616]
[1747594583499,4.06561585,2459.7,2459.5,10.616]
[1747594584012,4.06529062,2459.9,2459.5,12.4801245]
[1747594584216,4.0651311,2460.0,2459.5,16.54595236]
[1747594584527,4.06471018,2460.2,2459.5,12.4801245]
[1747594584838,4.06515559,2460.0,2459.5,16.5459685]
[1747594585002,4.06489264,2460.1,2459.6,4.06560462]
[1747594585203,4.06489264,2460.1,2459.6,3.40847291]
[1747594585204,4.06520456,2460.0,2459.6,3.40847291]
[1747594585606,4.06513436,2460.0,2459.6,3.40847291]
[1747594586540,0.381458,2459.9,2459.7,0.22753566]
[1747594587741,0.381458,2459.9,2459.8,0.22753566]
[1747594590509,4.4466639,2459.9,2459.8,0.22753566]
[1747594591042,4.0654332,2459.8,2459.6,0.22753566]
[1747594591927,0.381458,2459.7,2459.6,0.22753566]
[1747594592231,0.381458,2459.7,2459.5,22.8171]
[1747594593071,0.381458,2459.7,2459.6,0.22794199]
[1747594594884,0.47874628,2460.1,2460.0,4.06504065]
[1747594595082,0.47874628,2460.1,2460.0,24.50004065]
[1747594595579,0.47874628,2460.1,2460.0,24.72798264]
[1747594595986,0.47874628,2460.1,2460.0,14.60498264]
[1747594596189,0.47874628,2460.1,2460.0,10.53994199]
[1747594596889,0.47874628,2460.1,2460.0,0.22794199]
[1747594597095,4.58424976,2460.1,2459.3,10.311]
[1747594597279,4.06577955,2459.6,2459.3,10.311]
[1747594597593,4.06557897,2459.7,2459.3,10.311]
[1747594598242,0.47874628,2460.1,2459.3,11.82853571]
[1747594598466,0.47874628,2460.1,2459.3,1.51753571]
[1747594598467,8.0,2460.0,2459.3,1.51753571]
[1747594598644,4.06531261,2459.9,2459.4,10.311]
[1747594598844,4.06539142,2459.8,2459.4,10.311]
[1747594599086,4.06539142,2459.8,2459.5,10.311]
[1747594600297,0.7618,2460.0,2459.6,10.312]
[1747594600500,4.06553644,2459.7,2459.6,10.312]
[1747594601684,4.0652059,2459.9,2459.0,17.551]
[1747594602028,0.7618,2459.3,2458.4,10.312]
[1747594602363,4.0662146,2459.3,2458.5,14.13935953]
[1747594602611,4.06622449,2459.3,2458.7,4.06713607]
[1747594602818,4.06606187,2459.4,2458.8,10.313]
[1747594602999,4.06642181,2459.2,2458.9,10.313]
[1747594603200,4.06627066,2459.3,2458.9,10.313]
[1747594603382,8.0,2459.4,2458.9,10.313]
[1747594603594,12.06610193,2459.4,2458.9,10.313]
[1747594603807,12.06586704,2459.5,2458.9,13.50639809]
[1747594603986,4.06613416,2459.4,2458.9,13.50639809]
[1747594604192,0.7618,2459.6,2458.8,17.554]
[1747594604404,4.06646943,2459.2,2459.0,10.313]
[1747594604722,4.06589985,2459.5,2459.0,10.313]
[1747594604887,4.06613017,2459.4,2459.0,10.313]
[1747594605668,4.06636304,2459.2,2459.1,10.313]
[1747594606512,4.06671253,2459.0,2458.8,17.554]
[1747594606813,4.06671253,2459.0,2458.9,10.006]
[1747594607009,4.06685916,2458.9,2458.8,17.554]
[1747594607205,4.06685916,2458.9,2458.8,27.56]
[1747594607926,4.06685916,2458.9,2458.8,17.554]
[1747594608133,12.06685916,2458.9,2458.8,27.56]
[1747594609527,12.06685916,2458.9,2458.8,17.554]
[1747594609734,12.06685916,2458.9,2458.8,27.561]
[1747594610050,12.06685916,2458.9,2458.8,17.554]
[1747594610395,12.06685916,2458.9,2458.1,10.7041]
[1747594610396,12.06708953,2458.8,2458.1,18.3071]
[1747594610596,4.06781862,2458.4,2458.2,10.007]
[1747594610819,4.0674662,2458.6,2458.2,10.007]
[1747594611035,4.06685916,2458.9,2458.2,14.71293118]
[1747594611232,8.0,2458.8,2458.3,4.0678515]
[1747594611437,4.06719649,2458.7,2458.2,10.64499589]
[1747594611734,4.0669512,2458.9,2458.2,14.71290394]
[1747594611934,4.0669512,2458.9,2458.3,3.30200039]
[1747594611935,4.06697303,2458.9,2458.3,3.30200039]
[1747594612093,4.06740447,2458.6,2458.3,3.30200039]
[1747594612299,4.0671489,2458.8,2458.4,10.008]
[1747594612521,4.06782117,2458.4,2458.1,18.3071]
[1747594612726,4.06764911,2458.5,2458.2,10.008]
[1747594612934,4.067706,2458.4,2458.2,10.008]
[1747594613136,8.0,2458.6,2458.2,10.008]
[1747594613436,4.06701879,2458.9,2458.3,4.06782877]
[1747594613613,8.0,2459.1,2458.3,9.902]
[1747594613614,4.0665284,2459.1,2458.3,9.902]
[1747594613807,4.06664821,2459.1,2458.4,4.06761848]
[1747594614027,4.06672176,2459.0,2458.5,4.06743338]
[1747594614230,4.06700252,2458.9,2458.6,10.008]
[1747594614532,0.7704,2459.2,2458.6,10.008]
[1747594614533,4.83681432,2459.2,2458.6,12.40466071]
[1747594614724,4.06690824,2458.9,2458.6,12.40466071]
[1747594615713,4.0668096,2459.0,2458.6,12.40466071]
[1747594616342,4.06669377,2459.0,2458.6,12.40466071]
[1747594616637,4.0670272,2458.8,2458.6,10.008]
[1747594617975,4.06693349,2458.9,2458.6,10.008]
[1747594618358,4.0663829,2459.2,2458.7,0.782]
[1747594618676,4.06672748,2459.0,2458.7,0.782]
[1747594618864,4.06672748,2459.0,2458.7,1.97491274]
[1747594619864,4.06686509,2458.9,2458.7,1.97491274]
[1747594620070,4.06702456,2458.8,2458.7,0.782]
[1747594620266,8.0,2459.4,2458.3,0.782]
[1747594620267,4.0672241,2458.7,2458.3,0.782]
[1747594620444,4.06709807,2458.8,2458.7,10.008]
[1747594622150,4.06679758,2459.0,2458.7,10.008]
[1747594622350,4.06801724,2458.2,2458.1,17.557]
[1747594622540,4.06801724,2458.2,2458.1,27.565]
[1747594622743,4.06793538,2458.3,2458.1,27.565]
[1747594623242,0.8054,2458.2,2457.5,10.008]
[1747594623558,4.06885228,2457.7,2457.5,10.008]
[1747594623950,4.06917599,2457.5,2457.4,10.009]
[1747594624283,4.06893551,2457.7,2457.4,10.009]
[1747594624490,4.06910562,2457.6,2457.4,10.009]
[1747594625142,4.06818274,2458.1,2457.0,17.56]
[1747594625478,0.3826421,2458.2,2457.1,10.009]
[1747594625479,8.0,2457.8,2457.1,10.009]
[1747594625781,4.06954618,2457.3,2457.1,10.009]
[1747594625956,4.06941836,2457.4,2457.1,10.009]
[1747594626280,4.0689757,2457.7,2457.1,16.1517669]
[1747594626483,0.7579,2457.9,2457.1,12.08201624]
[1747594626655,8.0,2457.9,2457.4,4.06925633]
[1747594626855,5.20862098,2458.2,2457.5,4.06916862]
[1747594627062,1.1405421,2458.2,2457.6,10.7837]
[1747594627248,4.06863708,2457.9,2457.6,0.7727]
[1747594627449,4.06837114,2458.0,2457.7,10.011]
[1747594627773,4.0686793,2457.8,2457.7,10.011]
[1747594627975,12.06884485,2457.7,2457.6,10.011]
[1747594628151,4.06917599,2457.5,2457.0,18.3327]
[1747594628484,4.06958565,2457.3,2457.1,9.709]
[1747594628682,0.7579,2457.2,2457.0,17.56]
[1747594629083,4.83567737,2457.6,2457.0,17.56]
[1747594629251,4.06917599,2457.5,2457.0,17.56]
[1747594629447,8.0,2457.5,2457.0,17.56]
[1747594629860,12.06946057,2457.4,2457.0,17.56]
[1747594630055,8.0,2457.5,2457.0,17.56]
[1747594630286,4.07088522,2456.5,2456.1,27.277]
[1747594630506,4.83674064,2457.0,2456.1,34.15840378]
[1747594630707,4.83674064,2457.0,2456.4,4.07089718]
[1747594630708,4.07025252,2456.9,2456.4,4.07089718]
[1747594631005,0.7666,2457.0,2456.2,4.07132969]
[1747594631212,4.83662894,2457.0,2456.4,4.0709982]
[1747594631374,8.7666,2457.5,2456.7,4.07038038]
[1747594631570,8.7666,2457.5,2456.8,9.711]
[1747594631791,4.06984261,2457.1,2456.8,9.711]
[1747594631970,0.7666,2457.5,2456.8,1.46041416]
[1747594632181,0.7666,2457.5,2456.2,0.8225]
[1747594632405,0.7666,2457.5,2456.4,4.07097875]
[1747594632570,4.07032998,2456.9,2456.3,23.52608336]
[1747594632772,4.07009302,2457.0,2456.4,4.07090121]
[1747594632978,0.30847489,2457.0,2456.3,23.52614967]
[1747594633178,4.06999066,2457.1,2456.5,4.07079416]
[1747594633402,4.06934158,2457.4,2456.5,4.07083248]
[1747594633618,4.83578949,2457.5,2456.6,0.8225]
[1747594633775,4.06939922,2457.4,2456.9,4.07008778]
[1747594633976,0.7666,2457.5,2457.0,9.712]
[1747594634203,4.83581639,2457.5,2457.0,13.78199858]
[1747594634405,4.06934158,2457.4,2457.0,9.712]
[1747594634575,4.06951164,2457.3,2457.0,9.712]
[1747594634778,4.06901041,2457.6,2457.0,11.09023123]
[1747594635006,4.06921099,2457.5,2457.0,28.65923123]
[1747594635168,4.06929344,2457.5,2457.0,28.65923123]
[1747594635375,4.06945336,2457.4,2457.0,28.65923123]
[1747594635574,4.10938403,2457.7,2457.0,17.569]
[1747594635786,4.06898294,2457.7,2457.1,9.712]
[1747594636082,4.06920903,2457.5,2457.1,9.712]
[1747594636596,4.83498934,2457.8,2457.2,4.88197271]
[1747594636796,0.33868649,2457.7,2457.3,4.06945501]
[1747594636980,0.33868649,2457.7,2457.2,0.8124]
[1747594637181,0.33868649,2457.7,2457.3,4.06940081]
[1747594637384,0.33868649,2457.7,2457.4,13.78134023]
[1747594637695,0.33868649,2457.7,2457.4,13.78122905]
[1747594637897,0.33868649,2457.7,2457.5,4.06915179]
[1747594638093,0.33868649,2457.7,2457.6,4.06901041]
[1747594639330,4.06752499,2458.5,2458.0,4.06826779]
[1747594639647,0.33868649,2458.4,2458.1,31.34914972]
[1747594639938,0.33868649,2458.4,2458.2,14.53469491]
[1747594640084,0.33868649,2458.4,2458.2,10.4667]
[1747594641029,0.33868649,2458.4,2458.3,4.06785176]
[1747594641326,0.33868649,2458.4,2458.3,9.712]
[1747594642124,4.40637279,2458.4,2458.3,9.711]
[1747594642434,4.06801724,2458.2,2458.1,17.569]
[1747594642600,4.06801724,2458.2,2458.1,27.28]
[1747594643628,4.06792147,2458.3,2458.1,27.28]
[1747594643828,4.40644941,2458.4,2458.1,27.28]
[1747594644124,4.40639054,2458.4,2458.1,27.28]
[1747594644331,4.40645846,2458.4,2458.1,27.28]
[1747594644626,0.7685,2458.5,2458.1,27.28]
[1747594644627,4.83607506,2458.5,2458.1,27.28]
[1747594644820,8.7685,2458.8,2458.1,27.28]
[1747594645016,4.0678713,2458.3,2458.1,27.28]
[1747594645516,4.06801724,2458.2,2458.1,17.569]
[1747594645718,4.06801724,2458.2,2458.1,27.28]
[1747594646533,4.83651724,2458.2,2458.1,17.569]
[1747594646823,4.83651724,2458.2,2458.1,27.28]
[1747594648037,4.06872096,2457.8,2457.4,19.5761]
[1747594648324,4.06842284,2458.0,2457.6,9.711]
[1747594648616,4.06860623,2457.9,2457.6,9.711]
[1747594649387,4.06860623,2457.9,2457.4,23.66836391]
[1747594649587,4.06834936,2458.0,2457.5,9.711]
[1747594649788,4.06859661,2457.9,2457.5,9.711]
[1747594650416,4.06843125,2458.0,2457.5,13.78015569]
[1747594650742,4.06803253,2458.2,2457.7,4.06871239]
[1747594650893,4.06822801,2458.1,2457.6,4.0689591]
[1747594651097,4.06834904,2458.0,2457.5,15.32652717]
[1747594653722,4.06873787,2457.8,2457.6,9.405]
[1747594653927,4.0685176,2457.9,2457.7,9.405]
[1747594654139,4.06850439,2458.0,2457.7,9.405]
[1747594654436,4.06852104,2457.9,2457.7,9.405]
[1747594654747,4.06852669,2457.9,2457.7,9.405]
[1747594655246,4.0686793,2457.8,2457.7,9.405]
[1747594655809,4.0686793,2457.8,2457.1,4.06982485]
[1747594655810,4.0686793,2457.8,2455.8,2.0101]
[1747594656017,4.07009784,2457.0,2456.7,9.405]
[1747594656214,4.06917599,2457.5,2456.7,9.405]
[1747594656458,4.07009186,2457.0,2456.7,9.405]
[1747594656623,4.07019176,2456.9,2456.7,9.405]
[1747594656954,4.82240107,2456.7,2456.6,0.64593325]
[1747594657139,12.82240107,2456.7,2456.6,0.64593325]
[1747594657447,22.84340107,2456.7,2456.6,0.64593325]
[1747594657651,4.07178661,2456.0,2455.6,0.64593325]
[1747594658218,4.07156503,2456.1,2455.6,0.64593325]
[1747594658413,4.07167304,2456.0,2455.6,0.64593325]
[1747594658645,4.07167561,2456.0,2455.6,0.64593325]
[1747594658955,1.14518307,2456.9,2455.8,0.7684]
[1747594659254,4.07070007,2456.6,2456.0,4.07158854]
[1747594659446,4.07070007,2456.6,2456.1,4.07146174]
[1747594659756,1.14518307,2456.9,2456.0,4.07159849]
[1747594660053,4.07043274,2456.8,2456.0,3.88130955]
[1747594660257,4.07049949,2456.8,2456.1,18.861]
[1747594660462,4.07066742,2456.6,2456.1,18.861]
[1747594661165,4.07067217,2456.6,2456.1,22.93245814]
[1747594661471,4.41218538,2457.0,2456.1,3.88130955]
[1747594661634,4.07073057,2456.6,2456.2,9.408]
[1747594661964,4.07101821,2456.4,2455.9,17.568]
[1747594662261,4.07050107,2456.7,2456.0,9.408]
[1747594662571,0.87333918,2456.9,2456.0,9.408]
[1747594662572,4.07102489,2456.4,2456.0,9.408]
[1747594663092,4.90309703,2456.9,2456.0,9.408]
[1747594663093,4.07027761,2456.9,2456.3,4.07100939]
[1747594663242,0.8328,2457.2,2456.4,0.40710094]
[1747594663447,4.07025496,2456.9,2456.5,9.408]
[1747594663650,4.07006479,2457.0,2456.5,9.408]
[1747594663873,4.07025595,2456.9,2456.5,9.408]
[1747594664073,4.07002869,2457.0,2456.6,0.7866]
[1747594664272,0.7701,2457.6,2456.6,0.7866]
[1747594664580,4.06926956,2457.5,2456.7,1.01946]
[1747594664783,0.33868649,2457.6,2457.0,0.7866]
[1747594665075,0.33868649,2457.6,2457.2,4.06962511]
[1747594665255,0.33868649,2457.6,2457.3,13.49447207]
[1747594665844,0.33868649,2457.6,2457.3,13.49435876]
[1747594666043,0.33868649,2457.6,2457.4,9.408]
[1747594666274,4.06921668,2457.5,2457.4,9.408]
[1747594666647,4.06917599,2457.5,2457.4,9.408]
[1747594668410,4.40786248,2457.5,2457.4,9.408]
[1747594670688,4.06917599,2457.5,2457.4,9.408]
[1747594671626,4.10971517,2457.5,2457.4,9.408]
[1747594671826,8.0,2457.4,2456.8,17.573]
[1747594672123,4.07009925,2457.0,2456.9,9.408]
[1747594672328,4.06946452,2457.4,2456.9,12.1061]
[1747594672481,4.06946154,2457.4,2456.9,12.1061]
[1747594672683,4.06891475,2457.7,2457.0,4.06995533]
[1747594672920,1.08341015,2458.0,2457.1,2.0101]
[1747594673119,4.06851377,2457.9,2457.1,2.0101]
[1747594673424,4.06909152,2457.6,2457.1,2.0101]
[1747594673626,4.06921083,2457.5,2457.1,5.16821731]
[1747594674792,4.06904176,2457.6,2457.1,5.16821731]
[1747594674995,4.06925555,2457.5,2457.1,5.16821731]
[1747594675585,4.06909309,2457.6,2457.1,9.23805348]
[1747594675814,4.06892502,2457.7,2457.2,4.06966806]
[1747594676015,4.06832508,2458.1,2457.5,4.0690175]
[1747594676216,0.7842,2458.3,2457.6,9.408]
[1747594676517,4.06884485,2457.7,2457.6,17.572]
[1747594676689,4.06884485,2457.7,2457.6,26.98]
[1747594680053,4.06884485,2457.7,2457.6,17.572]
[1747594680221,12.06901041,2457.6,2457.5,9.407]
[1747594680543,12.89358403,2457.7,2457.1,9.407]
[1747594680544,4.06967279,2457.2,2457.1,9.407]
[1747594681105,4.07016972,2456.9,2456.8,17.571]
[1747594681550,4.1107089,2456.9,2456.8,17.571]
[1747594681754,4.07016972,2456.9,2456.8,17.571]
[1747594682237,12.07016972,2456.9,2456.8,17.571]
[1747594682448,4.07045048,2456.8,2456.6,9.407]
[1747594682629,9.198,2457.0,2456.6,10.3477]
[1747594682843,4.06947657,2457.4,2456.7,4.87852386]
[1747594682844,0.7842,2457.4,2456.7,4.87852386]
[1747594683019,4.06950718,2457.3,2456.8,4.07025262]
[1747594683206,4.06986048,2457.1,2456.7,0.8081]
[1747594683406,4.06986048,2457.1,2456.7,3.85862354]
[1747594683804,0.7842,2456.7,2456.1,17.571]
[1747594684005,4.07116942,2456.3,2456.1,17.571]
[1747594684342,4.07132969,2456.2,2456.1,17.571]
[1747594685042,4.85481272,2456.7,2456.1,17.571]
[1747594685043,4.07094201,2456.5,2456.1,17.571]
[1747594685545,4.0710603,2456.4,2456.1,17.571]
[1747594685731,4.07097972,2456.5,2456.2,1.7571]
[1747594686132,4.0709982,2456.4,2456.3,9.188]
[1747594686328,4.07033539,2456.8,2456.3,9.188]
[1747594686544,0.8197,2456.9,2456.3,9.188]
[1747594686764,4.07057894,2456.7,2456.3,9.9502]
[1747594686950,0.29902704,2456.9,2456.3,17.1805756]
[1747594687151,4.54848058,2457.2,2456.4,9.24]
[1747594687469,0.04053918,2457.1,2456.3,9.9502]
[1747594687688,4.07047981,2456.8,2456.3,9.9502]
[1747594687874,4.07021559,2456.9,2456.4,4.07098005]
[1747594688169,4.06971834,2457.2,2456.4,5.88022502]
[1747594688354,4.07025865,2456.9,2456.4,5.88015275]
[1747594688541,4.07006134,2457.0,2456.4,1.80924497]
[1747594688742,4.07027309,2456.9,2456.4,5.88012566]
[1747594688943,4.07027771,2456.9,2456.4,1.80924497]
[1747594689174,4.07046534,2456.8,2456.5,9.189]
[1747594689380,0.7747,2456.9,2456.5,9.189]
[1747594689381,4.07058247,2456.7,2456.5,9.189]
[1747594689868,4.07022736,2456.9,2456.5,9.189]
[1747594690173,4.07059749,2456.7,2456.5,9.189]
[1747594690329,4.07066677,2456.6,2456.5,9.189]
[1747594691370,4.07050047,2456.8,2456.5,9.189]
[1747594691535,4.07016984,2456.9,2456.5,10.8783]
[1747594691736,0.30561918,2457.1,2456.5,9.9594]
[1747594691976,4.07054343,2456.7,2456.2,0.7704]
[1747594692131,4.07054343,2456.7,2456.6,9.189]
[1747594693467,4.07083606,2456.5,2456.2,0.7704]
[1747594693668,4.07011682,2457.0,2456.3,13.26016064]
[1747594693976,4.06981238,2457.2,2456.4,0.04070596]
[1747594694178,4.06997493,2457.1,2456.6,4.07059001]
[1747594694390,4.0700105,2457.0,2456.5,13.992662]
[1747594694585,4.3729978,2457.6,2457.0,0.7619]
[1747594694752,4.54760879,2457.7,2457.1,26.764]
[1747594695285,0.47874628,2457.7,2457.1,26.764]
[1747594695681,4.06929532,2457.5,2457.1,26.764]
[1747594695884,4.06938923,2457.4,2457.2,3.36059849]
[1747594696683,4.06924932,2457.5,2457.2,3.36059849]
[1747594696853,0.47874628,2457.7,2457.2,3.36059849]
[1747594697178,0.47874628,2457.7,2457.2,7.43019058]
[1747594697383,0.47874628,2457.7,2457.3,4.06939779]
[1747594697584,0.47874628,2457.7,2457.4,1.14996379]
[1747594698061,4.54766961,2457.7,2457.4,1.14996379]
[1747594698461,0.47874628,2457.7,2457.4,1.14996379]
[1747594698786,4.54760687,2457.7,2457.4,1.14996379]
[1747594699188,0.47874628,2457.7,2457.3,2.0101]
[1747594699887,0.47874628,2457.7,2457.4,4.06925256]
[1747594700087,0.47874628,2457.7,2457.5,4.06908485]
[1747594700255,0.47874628,2457.7,2457.6,14.06561041]
[1747594700463,0.47874628,2457.7,2457.6,17.89324694]
[1747594703113,0.63832838,2457.9,2457.8,4.0686793]
[1747594703260,0.63832838,2457.9,2457.8,4.8772793]
[1747594704098,0.63832838,2457.9,2457.8,13.4272793]
[1747594704459,1.99885804,2458.2,2458.1,5.43258274]
[1747594704666,1.99885804,2458.2,2458.1,50.69668274]
[1747594704900,1.99885804,2458.2,2458.1,51.24668274]
[1747594706097,1.99885804,2458.2,2458.1,51.55111313]
[1747594706297,2.50664376,2458.9,2458.5,0.8144]
[1747594706598,2.50664376,2458.9,2458.8,4.06702456]
[1747594706782,2.50664376,2458.9,2458.8,10.63142456]
[1747594707383,2.50664376,2458.9,2458.8,28.86242456]
[1747594709997,2.50664376,2458.9,2458.8,37.41242456]
[1747594710192,2.50664376,2458.9,2458.8,41.29373411]
[1747594710602,2.50664376,2458.9,2458.8,41.49856185]
[1747594711095,2.50664376,2458.9,2458.8,32.73573411]
[1747594711258,2.50664376,2458.9,2458.8,40.73573411]
[1747594712563,4.06511746,2460.0,2459.4,4.06589114]
[1747594712797,4.06511746,2460.0,2459.5,26.744]
[1747594713001,4.06511746,2460.0,2459.5,30.8098399]
[1747594713312,4.0652822,2459.9,2459.5,26.744]
[1747594713880,4.06511585,2460.0,2459.5,30.8098647]
[1747594714082,0.7502,2460.1,2459.5,30.62530955]
[1747594714383,4.06555863,2459.7,2459.6,9.04]
[1747594714681,4.06543794,2459.8,2459.6,9.04]
[1747594715881,0.7502,2460.1,2459.6,9.04]
[1747594716075,0.7502,2460.4,2459.6,9.04]
[1747594716280,0.7502,2460.7,2460.0,4.0649446]
[1747594716519,0.7502,2460.7,2460.1,9.04]
[1747594716731,4.81417148,2460.7,2460.2,4.06468146]
[1747594716875,4.81417148,2460.7,2460.1,13.10479145]
[1747594717082,4.06432091,2460.5,2460.2,11.6598767]
[1747594717419,4.06409127,2460.6,2460.2,9.039]
[1747594717711,4.06398448,2460.7,2460.2,9.039]
[1747594718097,4.06413487,2460.6,2460.2,9.039]
[1747594718703,4.06396291,2460.7,2460.2,13.10368923]
[1747594718897,4.06407102,2460.6,2460.2,9.039]
[1747594719097,4.06395374,2460.7,2460.3,1.3103788]
[1747594719298,4.06360068,2460.9,2460.3,1.3103788]
[1747594719511,4.06420439,2460.6,2460.3,1.3103788]
[1747594719808,4.06396505,2460.7,2460.3,1.3103788]
[1747594720428,4.06382225,2460.8,2460.3,5.37489915]
[1747594720637,4.06390381,2460.7,2460.4,18.99638991]
[1747594720929,4.06346352,2461.0,2460.4,18.99638991]
[1747594721109,4.06367237,2460.9,2460.4,18.99638991]
[1747594721309,4.06373113,2460.8,2460.4,18.99638991]
[1747594723052,4.06392261,2460.7,2460.5,9.036]
[1747594723258,4.06352428,2461.0,2460.5,12.91730955]
[1747594723553,4.06387785,2460.8,2460.5,12.91730955]
[1747594725359,4.06400035,2460.7,2460.6,9.036]
[1747594726132,0.7502,2461.2,2460.6,9.036]
[1747594726337,4.06387312,2460.8,2460.5,3.88130955]
[1747594726547,4.06387312,2460.8,2460.6,9.035]
[1747594727118,4.06361005,2460.9,2460.6,9.035]
[1747594727327,4.06350109,2461.0,2460.6,12.63270036]
[1747594727721,0.7502,2461.2,2460.6,12.63270036]
[1747594727920,4.06384283,2460.8,2460.6,12.63270036]
[1747594728454,4.06361326,2460.9,2460.6,12.63270036]
[1747594728665,4.06361326,2460.9,2460.7,1.72675099]
[1747594728959,4.06346968,2461.0,2460.7,1.72675099]
[1747594729157,4.06356081,2460.9,2460.7,1.72675099]
[1747594729362,4.06371911,2460.8,2460.7,1.72675099]
[1747594729720,4.06380349,2460.8,2460.7,9.035]
[1747594730347,4.06388426,2460.7,2460.6,3.59770036]
[1747594730546,4.06388426,2460.7,2460.6,9.035]
[1747594730547,4.06397457,2460.7,2460.6,9.035]
[1747594730866,4.06421459,2460.5,2460.4,17.555]
[1747594731067,4.06421459,2460.5,2460.4,26.59]
[1747594731617,4.06412446,2460.6,2460.4,26.59]
[1747594731929,4.06421459,2460.5,2460.4,21.43630955]
[1747594732124,4.06412953,2460.6,2460.4,30.47130955]
[1747594732325,4.06421459,2460.5,2460.4,30.47130955]
[1747594732525,4.06421459,2460.5,2460.4,17.555]
[1747594732726,4.06421459,2460.5,2460.4,26.59]
[1747594733148,4.06421459,2460.5,2460.4,17.555]
[1747594733326,4.06421459,2460.5,2460.4,26.59]
[1747594734167,4.06421459,2460.5,2460.4,17.555]
[1747594734463,4.06421459,2460.5,2460.4,26.59]
[1747594734975,4.06355398,2460.9,2460.4,29.249]
[1747594735264,4.06383564,2460.8,2460.4,29.249]
[1747594735645,0.7635,2461.4,2460.4,39.89602925]
[1747594735843,0.6404351,2461.7,2461.0,0.8327]
[1747594736067,0.6404351,2461.7,2461.2,0.8327]
[1747594736242,4.70275518,2461.7,2461.3,26.585]
[1747594736442,0.6404351,2461.7,2461.3,26.585]
[1747594736646,0.6404351,2461.7,2461.4,3.14807403]
[1747594736966,0.6404351,2461.7,2461.5,4.06248447]
[1747594737137,0.6404351,2461.7,2461.6,4.06239844]
[1747594737333,0.6404351,2461.7,2461.5,4.06244147]
[1747594737540,4.06163338,2462.1,2461.6,4.06237483]
[1747594737752,4.06163338,2462.1,2461.7,0.40623748]
[1747594737949,4.06163338,2462.1,2461.8,9.035]
[1747594738154,4.06166486,2462.1,2461.8,9.035]
[1747594738368,0.7635,2462.7,2461.9,4.89459089]
[1747594738548,4.06076659,2462.6,2462.0,4.06164134]
[1747594738745,4.06091874,2462.5,2462.1,0.89968169]
[1747594739076,4.06027065,2462.9,2462.2,26.574]
[1747594739379,8.7522,2463.0,2462.2,17.547]
[1747594739569,4.06107862,2462.4,2462.3,18.059]
[1747594739764,4.06099395,2462.5,2462.3,18.059]
[1747594739964,4.06099395,2462.5,2462.3,21.15822301]
[1747594740277,0.7522,2463.0,2462.3,21.15822301]
[1747594740843,4.06101186,2462.5,2462.3,21.15822301]
[1747594741283,4.06080438,2462.6,2462.3,21.15822301]
[1747594741483,0.7522,2463.0,2462.3,21.15822301]
[1747594741784,4.05976552,2463.2,2462.4,4.67412793]
[1747594741994,4.05976552,2463.2,2462.7,4.06056421]
[1747594742291,0.7526,2463.6,2462.9,0.763]
[1747594742587,4.05955113,2463.4,2462.9,0.763]
[1747594742785,4.05975966,2463.2,2462.9,0.763]
[1747594743190,4.05992448,2463.1,2463.0,9.032]
[1747594743375,4.06054572,2462.8,2462.6,0.763]
[1747594743705,4.06054572,2462.8,2462.7,18.055]
[1747594744005,4.06041903,2462.8,2462.7,18.055]
[1747594744210,4.06031132,2462.9,2462.7,18.055]
[1747594744522,4.06041903,2462.8,2462.6,1.25673899]
[1747594744818,8.0,2463.3,2462.7,9.021]
[1747594744974,4.06037261,2462.9,2462.7,9.021]
[1747594745175,4.06095007,2462.5,2462.3,0.8205]
[1747594745405,4.06095007,2462.5,2462.4,9.021]
[1747594746610,4.06124355,2462.3,2462.2,17.547]
[1747594746798,4.06124355,2462.3,2462.2,26.568]
[1747594746989,4.06115353,2462.4,2462.2,26.568]
[1747594747190,4.06124355,2462.3,2462.2,26.568]
[1747594747884,4.06095684,2462.5,2462.2,26.568]
[1747594748090,4.06107862,2462.4,2462.2,26.568]
[1747594748696,4.06079733,2462.6,2462.2,26.568]
[1747594748896,4.06112386,2462.4,2462.2,30.1268]
[1747594749111,4.06124355,2462.3,2462.2,26.568]
[1747594750019,4.06124355,2462.3,2462.2,17.547]
[1747594750185,4.06124355,2462.3,2462.2,26.567]
[1747594750814,4.06124355,2462.3,2462.2,17.547]
[1747594751018,4.06084066,2462.6,2462.2,26.567]
[1747594751315,4.06124355,2462.3,2462.2,26.567]
[1747594751791,4.06124355,2462.3,2462.2,17.547]
[1747594751992,4.06124355,2462.3,2462.2,26.567]
[1747594753130,4.83834355,2462.3,2462.2,17.547]
[1747594753334,12.83834355,2462.3,2461.3,5.75]
[1747594753536,0.7771,2462.3,2461.4,27.132]
[1747594753741,4.06152241,2462.2,2461.7,4.0621221]
[1747594754243,4.06094032,2462.5,2461.9,4.06184403]
[1747594754399,4.83793625,2462.6,2462.1,4.06155822]
[1747594754600,4.06075627,2462.6,2462.1,5.45611793]
[1747594755029,0.7916,2462.9,2462.1,1.39462692]
[1747594755228,4.06084034,2462.6,2462.1,5.45616907]
[1747594755432,4.06084034,2462.6,2462.1,1.39462692]
[1747594755727,4.06084034,2462.6,2462.1,5.45610093]
[1747594756030,4.06084034,2462.6,2462.2,1.53002009]
[1747594756212,4.06084034,2462.6,2462.3,17.536]
[1747594756409,4.06066376,2462.7,2462.3,17.536]
[1747594756733,4.06078833,2462.6,2462.3,17.536]
[1747594757106,4.06062458,2462.7,2462.3,26.549]
[1747594757311,4.06062458,2462.7,2462.4,3.21403925]
[1747594757530,0.7916,2462.9,2462.5,9.019]
[1747594757705,4.06068729,2462.7,2462.5,9.019]